[Event "Early-Titled-Tuesday-Blitz-March-19-2024"]
[Site "Chess.com"]
[Date "2024.03.19"]
[Round "8"]
[White "DenLaz"]
[Black "MagnusCarlsen"]
[Result "1-0"]
[WhiteElo "3109"]
[BlackElo "3261"]
[TimeControl "180+1"]
[EndTime "9:29:32 PDT"]
[Termination "DenLaz won by resignation"]

1. d4 {[%clk 0:02:59.9]} 1... Nf6 {[%clk 0:02:58.4]} 2. c4 {[%clk 0:02:59.6]}
2... g6 {[%clk 0:02:56.9]} 3. g3 {[%clk 0:02:59.7]} 3... c6 {[%clk 0:02:56.3]}
4. Bg2 {[%clk 0:02:59.9]} 4... d5 {[%clk 0:02:57.1]} 5. Nf3 {[%clk 0:03:00.5]}
5... Bg7 {[%clk 0:02:56.9]} 6. O-O {[%clk 0:03:00.2]} 6... O-O {[%clk
0:02:57.6]} 7. Qa4 {[%clk 0:03:00.4]} 7... Nbd7 {[%clk 0:02:54.1]} 8. cxd5
{[%clk 0:03:00.1]} 8... Nb6 {[%clk 0:02:54.5]} 9. Qb3 {[%clk 0:02:59.2]} 9...
Nfxd5 {[%clk 0:02:54.3]} 10. e4 {[%clk 0:02:56.3]} 10... Nc7 {[%clk 0:02:54.2]}
11. Nc3 {[%clk 0:02:54.4]} 11... Bg4 {[%clk 0:02:54.1]} 12. Rd1 {[%clk
0:02:30.8]} 12... Bxf3 {[%clk 0:02:53.1]} 13. Bxf3 {[%clk 0:02:31]} 13... Bxd4
{[%clk 0:02:53.5]} 14. e5 {[%clk 0:02:18.2]} 14... Ne6 {[%clk 0:02:37.2]} 15.
Bg4 {[%clk 0:02:10]} 15... Nd7 {[%clk 0:01:13.1]} 16. Ne2 {[%clk 0:01:43.7]}
16... Nec5 {[%clk 0:00:54.4]} 17. Qc2 {[%clk 0:01:30.5]} 17... Bxe5 {[%clk
0:00:54.7]} 18. Bh6 {[%clk 0:01:29.1]} 18... Bd6 {[%clk 0:00:46.3]} 19. b4
{[%clk 0:01:20]} 19... Na6 {[%clk 0:00:45.4]} 20. Bxd7 {[%clk 0:01:17.2]} 20...
Qxd7 {[%clk 0:00:45.6]} 21. Qc3 {[%clk 0:01:16.2]} 21... f6 {[%clk 0:00:46]} 22.
Bxf8 {[%clk 0:01:15.9]} 22... Kxf8 {[%clk 0:00:45.9]} 23. Rab1 {[%clk
0:01:10.7]} 23... Nc7 {[%clk 0:00:46]} 24. Qb3 {[%clk 0:01:09.4]} 24... Qe6
{[%clk 0:00:44.5]} 25. Qc2 {[%clk 0:01:07.6]} 25... Qf5 {[%clk 0:00:35]} 26. Qb3
{[%clk 0:01:06.5]} 26... Qe6 {[%clk 0:00:32.6]} 27. Qc2 {[%clk 0:01:06.2]} 27...
Qf5 {[%clk 0:00:30.5]} 28. Qb3 {[%clk 0:01:02.2]} 28... a5 {[%clk 0:00:28.7]}
29. bxa5 {[%clk 0:00:57.8]} 29... Rxa5 {[%clk 0:00:28.6]} 30. Nd4 {[%clk
0:00:57.6]} 30... Qc8 {[%clk 0:00:21.6]} 31. Qxb7 {[%clk 0:00:55.5]} 31... Qxb7
{[%clk 0:00:22.5]} 32. Rxb7 {[%clk 0:00:55.9]} 32... c5 {[%clk 0:00:22.6]} 33.
Nb3 {[%clk 0:00:44.7]} 33... Rxa2 {[%clk 0:00:22.3]} 34. Rxd6 {[%clk 0:00:45.3]}
34... exd6 {[%clk 0:00:20.2]} 35. Rxc7 {[%clk 0:00:45.9]} 35... h5 {[%clk
0:00:16.5]} 36. Kg2 {[%clk 0:00:45]} 36... Ke8 {[%clk 0:00:16.5]} 37. Nc1 {[%clk
0:00:44.9]} 37... Rd2 {[%clk 0:00:15.8]} 38. Kf3 {[%clk 0:00:43.1]} 38... Kd8
{[%clk 0:00:15.2]} 39. Rf7 {[%clk 0:00:41.1]} 39... f5 {[%clk 0:00:10.5]} 40.
Ke3 {[%clk 0:00:41.4]} 40... Rd1 {[%clk 0:00:09.9]} 41. Nd3 {[%clk 0:00:38.7]}
41... Ke8 {[%clk 0:00:08.4]} 42. Rf6 {[%clk 0:00:36.7]} 42... Kd7 {[%clk
0:00:08.8]} 43. Rxg6 {[%clk 0:00:36.2]} 43... c4 {[%clk 0:00:09.3]} 44. Nb2
{[%clk 0:00:33.9]} 44... Re1+ {[%clk 0:00:07.7]} 45. Kd2 {[%clk 0:00:33.5]}
45... Rf1 {[%clk 0:00:07]} 46. Nxc4 {[%clk 0:00:30.6]} 46... Rxf2+ {[%clk
0:00:07.1]} 47. Ke3 {[%clk 0:00:31.3]} 47... Rxh2 {[%clk 0:00:08]} 48. Rxd6+
{[%clk 0:00:28.5]} 48... Ke7 {[%clk 0:00:08.7]} 49. Rh6 {[%clk 0:00:29.2]} 49...
Kf7 {[%clk 0:00:08.9]} 50. Nd6+ {[%clk 0:00:28.9]} 50... Ke7 {[%clk 0:00:06.4]}
51. Nxf5+ {[%clk 0:00:29.2]} 51... Kf7 {[%clk 0:00:07.3]} 52. Kf3 {[%clk
0:00:28.9]} 52... Ra2 {[%clk 0:00:05.7]} 53. Rxh5 {[%clk 0:00:24.3]} 53... Kf6
{[%clk 0:00:06.6]} 54. Ne3 {[%clk 0:00:24.2]} 1-0

[Event "Early-Titled-Tuesday-Blitz-March-19-2024"]
[Site "Chess.com"]
[Date "2024.03.19"]
[Round "8"]
[White "Vse_po_kaify"]
[Black "Elegance_Riks"]
[Result "0-1"]
[WhiteElo "2478"]
[BlackElo "2771"]
[TimeControl "180+1"]
[EndTime "9:29:32 PDT"]
[Termination "Elegance_Riks won on time"]

1. e4 {[%clk 0:02:59]} 1... g6 {[%clk 0:02:57.2]} 2. c4 {[%clk 0:02:58.3]} 2...
Bg7 {[%clk 0:02:56.9]} 3. Nc3 {[%clk 0:02:59]} 3... d6 {[%clk 0:02:57.1]} 4. g3
{[%clk 0:02:59.3]} 4... e5 {[%clk 0:02:54.5]} 5. Bg2 {[%clk 0:02:59.6]} 5... Nc6
{[%clk 0:02:54.8]} 6. Nge2 {[%clk 0:02:59.4]} 6... Nge7 {[%clk 0:02:54.8]} 7.
O-O {[%clk 0:02:59.6]} 7... h5 {[%clk 0:02:55.2]} 8. h3 {[%clk 0:02:59.2]} 8...
h4 {[%clk 0:02:52.1]} 9. g4 {[%clk 0:02:59.4]} 9... g5 {[%clk 0:02:52.5]} 10. d4
{[%clk 0:02:44.2]} 10... Ng6 {[%clk 0:02:52.1]} 11. dxe5 {[%clk 0:02:33.1]}
11... Ncxe5 {[%clk 0:02:44.5]} 12. f4 {[%clk 0:02:30.4]} 12... gxf4 {[%clk
0:02:41.8]} 13. Nxf4 {[%clk 0:02:27.8]} 13... Nxf4 {[%clk 0:02:41.6]} 14. Bxf4
{[%clk 0:02:27.4]} 14... Be6 {[%clk 0:02:41.7]} 15. Nd5 {[%clk 0:02:22.4]} 15...
c6 {[%clk 0:02:41.4]} 16. Ne3 {[%clk 0:02:06.7]} 16... Qb6 {[%clk 0:02:40.9]}
17. Kh1 {[%clk 0:02:05.5]} 17... O-O-O {[%clk 0:02:36.6]} 18. b4 {[%clk
0:02:05]} 18... Nxc4 {[%clk 0:02:30.9]} 19. Nd5 {[%clk 0:01:32.3]} 19... Bxd5
{[%clk 0:02:08.6]} 20. exd5 {[%clk 0:01:31.7]} 20... Bxa1 {[%clk 0:02:08.7]} 21.
dxc6 {[%clk 0:00:56.4]} 21... bxc6 {[%clk 0:02:05.6]} 22. Qxa1 {[%clk
0:00:55.9]} 22... Rhe8 {[%clk 0:01:52.7]} 23. Rc1 {[%clk 0:00:48.6]} 23... d5
{[%clk 0:01:52]} 24. Qf6 {[%clk 0:00:38.4]} 24... Rd7 {[%clk 0:01:49.4]} 25. a4
{[%clk 0:00:24.6]} 25... Re6 {[%clk 0:01:26.4]} 26. Qh8+ {[%clk 0:00:23.3]}
26... Qd8 {[%clk 0:01:26.8]} 27. Qh7 {[%clk 0:00:22.2]} 27... Qf6 {[%clk
0:01:18.1]} 28. b5 {[%clk 0:00:19.1]} 28... Qxf4 {[%clk 0:01:16.9]} 29. Rf1
{[%clk 0:00:18.2]} 29... Qg3 {[%clk 0:01:11.8]} 30. bxc6 {[%clk 0:00:17.6]}
30... Rde7 {[%clk 0:01:11.6]} 31. Qg8+ {[%clk 0:00:15.6]} 31... Kc7 {[%clk
0:01:04.6]} 32. Qa8 {[%clk 0:00:12.1]} 32... Ne3 {[%clk 0:00:31.9]} 33. Qb7+
{[%clk 0:00:08.7]} 33... Kd6 {[%clk 0:00:32.2]} 34. Qb8+ {[%clk 0:00:09]} 34...
Kc5 {[%clk 0:00:29.4]} 35. Rc1+ {[%clk 0:00:06.6]} 35... Nc4 {[%clk 0:00:29.4]}
36. Qb5+ {[%clk 0:00:06.7]} 36... Kd6 {[%clk 0:00:26.6]} 37. Qb4+ {[%clk
0:00:01.6]} 37... Ke5 {[%clk 0:00:22.9]} 38. Rxc4 {[%clk 0:00:02]} 38... dxc4
{[%clk 0:00:21.3]} 39. Qb2+ {[%clk 0:00:02.4]} 39... c3 {[%clk 0:00:21.1]} 40.
Qb5+ {[%clk 0:00:02.5]} 40... Kf6 {[%clk 0:00:20]} 41. Qf5+ {[%clk 0:00:02.5]}
41... Kg7 {[%clk 0:00:20.5]} 42. Qg5+ {[%clk 0:00:02.9]} 42... Kf8 {[%clk
0:00:20.4]} 43. Qc5 {[%clk 0:00:01.6]} 43... Re1+ {[%clk 0:00:20.3]} 44. Qg1
{[%clk 0:00:01.5]} 44... Rxg1+ {[%clk 0:00:20.6]} 0-1

[Event "Early-Titled-Tuesday-Blitz-March-19-2024"]
[Site "Chess.com"]
[Date "2024.03.19"]
[Round "8"]
[White "musclemonster12"]
[Black "Jumbo"]
[Result "0-1"]
[WhiteElo "2604"]
[BlackElo "2893"]
[TimeControl "180+1"]
[EndTime "9:29:33 PDT"]
[Termination "Jumbo won on time"]

1. e4 {[%clk 0:02:52.5]} 1... c5 {[%clk 0:02:59]} 2. Nf3 {[%clk 0:02:51.7]} 2...
d6 {[%clk 0:02:59.4]} 3. d4 {[%clk 0:02:51.2]} 3... cxd4 {[%clk 0:03:00.3]} 4.
Qxd4 {[%clk 0:02:51.6]} 4... Nf6 {[%clk 0:03:00.3]} 5. Be2 {[%clk 0:02:50]} 5...
Nc6 {[%clk 0:02:59.6]} 6. Qe3 {[%clk 0:02:50.1]} 6... g6 {[%clk 0:03:00.1]} 7.
h3 {[%clk 0:02:50.5]} 7... Bg7 {[%clk 0:03:00.4]} 8. O-O {[%clk 0:02:51.1]} 8...
O-O {[%clk 0:03:00.8]} 9. Rd1 {[%clk 0:02:51.7]} 9... Qb6 {[%clk 0:02:52.8]} 10.
Nc3 {[%clk 0:02:45.8]} 10... Be6 {[%clk 0:02:49.7]} 11. Qg5 {[%clk 0:02:06.5]}
11... Nb4 {[%clk 0:02:18.4]} 12. Bd3 {[%clk 0:02:05.7]} 12... h6 {[%clk
0:01:57.5]} 13. Qh4 {[%clk 0:01:56.9]} 13... g5 {[%clk 0:01:57.2]} 14. Qg3
{[%clk 0:01:48.2]} 14... Nh5 {[%clk 0:01:51.8]} 15. Qh2 {[%clk 0:01:46.5]} 15...
Rac8 {[%clk 0:01:41.5]} 16. Be3 {[%clk 0:01:45.3]} 16... Qa5 {[%clk 0:01:36.8]}
17. Nd4 {[%clk 0:01:21.3]} 17... Be5 {[%clk 0:01:35.1]} 18. g3 {[%clk
0:01:20.7]} 18... Nxd3 {[%clk 0:01:10.4]} 19. cxd3 {[%clk 0:01:09.6]} 19... Qb4
{[%clk 0:01:10]} 20. Nb3 {[%clk 0:00:57.4]} 20... Bxb3 {[%clk 0:00:54.3]} 21.
axb3 {[%clk 0:00:58.3]} 21... Qxb3 {[%clk 0:00:55]} 22. d4 {[%clk 0:00:58.4]}
22... Bg7 {[%clk 0:00:50.4]} 23. Rd2 {[%clk 0:00:57.4]} 23... a6 {[%clk
0:00:47.6]} 24. g4 {[%clk 0:00:45.5]} 24... Nf6 {[%clk 0:00:46.6]} 25. f3 {[%clk
0:00:45.2]} 25... Rc4 {[%clk 0:00:38.8]} 26. h4 {[%clk 0:00:44.6]} 26... Nh7
{[%clk 0:00:20]} 27. Rad1 {[%clk 0:00:44.3]} 27... Rfc8 {[%clk 0:00:19.5]} 28.
Rc2 {[%clk 0:00:42.2]} 28... b5 {[%clk 0:00:16.9]} 29. Rcd2 {[%clk 0:00:37.3]}
29... e6 {[%clk 0:00:17.1]} 30. Rd3 {[%clk 0:00:36]} 30... Qb4 {[%clk
0:00:13.9]} 31. hxg5 {[%clk 0:00:35.6]} 31... hxg5 {[%clk 0:00:13.8]} 32. e5
{[%clk 0:00:32]} 32... d5 {[%clk 0:00:12.4]} 33. f4 {[%clk 0:00:31.1]} 33...
gxf4 {[%clk 0:00:12.3]} 34. Qxf4 {[%clk 0:00:32]} 34... Qe7 {[%clk 0:00:12.5]}
35. Ne2 {[%clk 0:00:29.3]} 35... f6 {[%clk 0:00:12.6]} 36. Qg3 {[%clk
0:00:25.4]} 36... fxe5 {[%clk 0:00:12.4]} 37. dxe5 {[%clk 0:00:26.3]} 37... Re4
{[%clk 0:00:12.4]} 38. Qg2 {[%clk 0:00:11.5]} 38... Bxe5 {[%clk 0:00:12]} 39.
Bd4 {[%clk 0:00:10.4]} 39... Qg5 {[%clk 0:00:09.3]} 40. Bxe5 {[%clk 0:00:08.7]}
40... Qxe5 {[%clk 0:00:10.2]} 41. Nd4 {[%clk 0:00:05.2]} 41... Ng5 {[%clk
0:00:07.9]} 0-1

[Event "Early-Titled-Tuesday-Blitz-March-19-2024"]
[Site "Chess.com"]
[Date "2024.03.19"]
[Round "8"]
[White "ArchibaldCerveza29"]
[Black "ChessFanNM"]
[Result "0-1"]
[WhiteElo "2387"]
[BlackElo "2276"]
[TimeControl "180+1"]
[EndTime "9:29:36 PDT"]
[Termination "ChessFanNM won on time"]

1. e4 {[%clk 0:03:00.9]} 1... e5 {[%clk 0:02:58.6]} 2. f4 {[%clk 0:02:59.7]}
2... d5 {[%clk 0:02:57.5]} 3. exd5 {[%clk 0:02:59.4]} 3... exf4 {[%clk
0:02:57.4]} 4. Nf3 {[%clk 0:02:59.7]} 4... Nf6 {[%clk 0:02:56.7]} 5. Bb5+ {[%clk
0:02:55.2]} 5... c6 {[%clk 0:02:54.8]} 6. dxc6 {[%clk 0:02:56.1]} 6... Nxc6
{[%clk 0:02:54.7]} 7. d4 {[%clk 0:02:56.1]} 7... Bd6 {[%clk 0:02:54.1]} 8. O-O
{[%clk 0:02:56.4]} 8... O-O {[%clk 0:02:53]} 9. Nbd2 {[%clk 0:02:57]} 9... Qb6
{[%clk 0:02:30.7]} 10. Bxc6 {[%clk 0:02:55.2]} 10... bxc6 {[%clk 0:02:27.9]} 11.
Nc4 {[%clk 0:02:54.9]} 11... Qc7 {[%clk 0:02:21.9]} 12. Nxd6 {[%clk 0:02:55.8]}
12... Qxd6 {[%clk 0:02:21.9]} 13. c3 {[%clk 0:02:50.6]} 13... c5 {[%clk
0:02:15.2]} 14. Kh1 {[%clk 0:02:45.4]} 14... Bb7 {[%clk 0:02:12.2]} 15. dxc5
{[%clk 0:02:36.8]} 15... Qxc5 {[%clk 0:02:11.2]} 16. Bxf4 {[%clk 0:02:35.6]}
16... Rad8 {[%clk 0:02:10.4]} 17. Qb3 {[%clk 0:02:34.6]} 17... Bd5 {[%clk
0:02:03.8]} 18. Qa4 {[%clk 0:02:32.8]} 18... Rfe8 {[%clk 0:02:01.3]} 19. Bg3
{[%clk 0:01:57]} 19... Ne4 {[%clk 0:01:53.3]} 20. Bh4 {[%clk 0:01:52]} 20... g5
{[%clk 0:01:46.3]} 21. Nxg5 {[%clk 0:01:12]} 21... Nxg5 {[%clk 0:01:44.9]} 22.
Qg4 {[%clk 0:01:00.9]} 22... h6 {[%clk 0:01:14.1]} 23. Bxg5 {[%clk 0:00:42.2]}
23... Be6 {[%clk 0:01:10]} 24. Be7+ {[%clk 0:00:36.6]} 24... Bxg4 {[%clk
0:01:08.3]} 25. Bxc5 {[%clk 0:00:36.9]} 25... Rd2 {[%clk 0:01:06.1]} 26. Rf2
{[%clk 0:00:35.8]} 26... Rxf2 {[%clk 0:01:04.5]} 27. Bxf2 {[%clk 0:00:36.7]}
27... Re2 {[%clk 0:01:04.3]} 28. Bxa7 {[%clk 0:00:34.3]} 28... Rxb2 {[%clk
0:01:03.8]} 29. a4 {[%clk 0:00:30.5]} 29... Be6 {[%clk 0:01:03.6]} 30. Rd1
{[%clk 0:00:17.9]} 30... Ra2 {[%clk 0:01:01.6]} 31. h3 {[%clk 0:00:11.8]} 31...
Rxa4 {[%clk 0:01:01]} 32. Bd4 {[%clk 0:00:12.2]} 32... Ra2 {[%clk 0:00:58]} 33.
Be5 {[%clk 0:00:11]} 33... Re2 {[%clk 0:00:56.3]} 34. Bf4 {[%clk 0:00:09.4]}
34... Rc2 {[%clk 0:00:52.9]} 35. Be5 {[%clk 0:00:08.9]} 35... Re2 {[%clk
0:00:52.6]} 36. Bg3 {[%clk 0:00:08.5]} 36... Rc2 {[%clk 0:00:46.1]} 37. Rd3
{[%clk 0:00:07]} 37... Bc4 {[%clk 0:00:42.2]} 38. Re3 {[%clk 0:00:06.8]} 38...
Bd5 {[%clk 0:00:41]} 39. Be5 {[%clk 0:00:06.7]} 39... Rxg2 {[%clk 0:00:38.1]}
40. c4 {[%clk 0:00:02.4]} 40... Re2+ {[%clk 0:00:32.2]} 41. cxd5 {[%clk
0:00:02.4]} 41... Rxe3 {[%clk 0:00:32.2]} 42. Bf4 {[%clk 0:00:03.3]} 42... Rd3
{[%clk 0:00:32.1]} 43. d6 {[%clk 0:00:03]} 43... Kh7 {[%clk 0:00:32]} 44. Kg2
{[%clk 0:00:02.5]} 44... Rd4 {[%clk 0:00:32.2]} 45. Kf3 {[%clk 0:00:02.9]} 45...
Kg6 {[%clk 0:00:31.8]} 46. Be5 {[%clk 0:00:03.1]} 46... Rd3+ {[%clk 0:00:30.9]}
47. Ke4 {[%clk 0:00:03.5]} 47... Rd1 {[%clk 0:00:29.7]} 48. h4 {[%clk
0:00:02.8]} 48... h5 {[%clk 0:00:29.9]} 49. Bd4 {[%clk 0:00:03.2]} 49... f5+
{[%clk 0:00:25.3]} 50. Ke5 {[%clk 0:00:01.8]} 50... Kf7 {[%clk 0:00:21.9]} 0-1

[Event "Early-Titled-Tuesday-Blitz-March-19-2024"]
[Site "Chess.com"]
[Date "2024.03.19"]
[Round "8"]
[White "the_chess_child"]
[Black "TERMINATOR_PC"]
[Result "1-0"]
[WhiteElo "2873"]
[BlackElo "2587"]
[TimeControl "180+1"]
[EndTime "9:29:39 PDT"]
[Termination "the_chess_child won by resignation"]

1. e4 {[%clk 0:03:00.9]} 1... e5 {[%clk 0:02:57.8]} 2. Nf3 {[%clk 0:02:59.8]}
2... Nc6 {[%clk 0:02:55.6]} 3. d3 {[%clk 0:02:59.4]} 3... Nf6 {[%clk 0:02:52.3]}
4. g3 {[%clk 0:02:59.5]} 4... Bc5 {[%clk 0:02:52.4]} 5. Bg2 {[%clk 0:02:59.3]}
5... O-O {[%clk 0:02:52.4]} 6. O-O {[%clk 0:02:58.9]} 6... d6 {[%clk 0:02:52.9]}
7. Nc3 {[%clk 0:02:59.1]} 7... h6 {[%clk 0:02:51.1]} 8. Na4 {[%clk 0:02:58.5]}
8... Bb6 {[%clk 0:02:50.6]} 9. Nxb6 {[%clk 0:02:58.7]} 9... axb6 {[%clk
0:02:51.5]} 10. b3 {[%clk 0:02:59.3]} 10... Re8 {[%clk 0:02:45.9]} 11. Bb2
{[%clk 0:02:58.2]} 11... Bg4 {[%clk 0:02:46]} 12. h3 {[%clk 0:02:58]} 12... Bd7
{[%clk 0:02:42.1]} 13. Re1 {[%clk 0:02:57.5]} 13... b5 {[%clk 0:02:39.8]} 14. a3
{[%clk 0:02:56.4]} 14... Ne7 {[%clk 0:02:33]} 15. d4 {[%clk 0:02:56.1]} 15...
exd4 {[%clk 0:02:31]} 16. Nxd4 {[%clk 0:02:55.8]} 16... Ng6 {[%clk 0:02:27.9]}
17. f4 {[%clk 0:02:39.6]} 17... c6 {[%clk 0:02:26.8]} 18. Qf3 {[%clk 0:02:38]}
18... Qc7 {[%clk 0:02:15.9]} 19. Rad1 {[%clk 0:02:31.8]} 19... d5 {[%clk
0:02:06.9]} 20. exd5 {[%clk 0:02:07.2]} 20... Nxd5 {[%clk 0:02:06.7]} 21. Nxb5
{[%clk 0:01:34.8]} 21... Qb6+ {[%clk 0:02:04.1]} 22. Nd4 {[%clk 0:01:34.4]}
22... Rad8 {[%clk 0:02:04.2]} 23. Kh2 {[%clk 0:01:33.8]} 23... Qc7 {[%clk
0:01:55.4]} 24. c4 {[%clk 0:01:30.4]} 24... Nf6 {[%clk 0:01:55.1]} 25. b4 {[%clk
0:01:29.6]} 25... h5 {[%clk 0:01:53.2]} 26. Bc1 {[%clk 0:01:22.2]} 26... h4
{[%clk 0:01:47.1]} 27. Rxe8+ {[%clk 0:01:21.5]} 27... Bxe8 {[%clk 0:01:42.7]}
28. g4 {[%clk 0:01:20.7]} 28... c5 {[%clk 0:01:40.8]} 29. Nb5 {[%clk 0:01:20.2]}
29... Bxb5 {[%clk 0:01:40.5]} 30. Rxd8+ {[%clk 0:01:18.3]} 30... Qxd8 {[%clk
0:01:40.9]} 31. cxb5 {[%clk 0:01:19]} 31... cxb4 {[%clk 0:01:41.4]} 32. axb4
{[%clk 0:01:11.8]} 32... b6 {[%clk 0:01:36.3]} 33. Be3 {[%clk 0:01:11.9]} 33...
Ne7 {[%clk 0:01:25.7]} 34. Qa8 {[%clk 0:01:05.9]} 34... Qxa8 {[%clk 0:01:11.4]}
35. Bxa8 {[%clk 0:01:06.8]} 35... Nfd5 {[%clk 0:01:08.5]} 36. Bf2 {[%clk
0:01:05.6]} 36... f6 {[%clk 0:01:02.6]} 37. f5 {[%clk 0:01:03.2]} 37... Kf7
{[%clk 0:01:00.9]} 38. Kg2 {[%clk 0:01:00.5]} 38... Ke8 {[%clk 0:00:46.6]} 39.
Kf3 {[%clk 0:00:56.8]} 39... Kd7 {[%clk 0:00:46.4]} 40. Bxh4 {[%clk 0:00:53.2]}
40... Nc3 {[%clk 0:00:37.5]} 41. Bf2 {[%clk 0:00:51.8]} 41... Kc7 {[%clk
0:00:36.1]} 42. h4 {[%clk 0:00:47.7]} 42... Nxb5 {[%clk 0:00:35.6]} 43. Be4
{[%clk 0:00:47.9]} 43... Nd6 {[%clk 0:00:24.2]} 44. Bd3 {[%clk 0:00:41.5]} 44...
Nc6 {[%clk 0:00:23.6]} 45. Bg3 {[%clk 0:00:34.9]} 45... Nxb4 {[%clk 0:00:23.4]}
46. Be4 {[%clk 0:00:33]} 46... Nc6 {[%clk 0:00:21.6]} 47. g5 {[%clk 0:00:33.2]}
47... Nd4+ {[%clk 0:00:14.4]} 48. Ke3 {[%clk 0:00:31.9]} 48... Nb3 {[%clk
0:00:06.2]} 49. gxf6 {[%clk 0:00:28.5]} 49... gxf6 {[%clk 0:00:06.8]} 50. h5
{[%clk 0:00:29.1]} 50... Nc5 {[%clk 0:00:07]} 51. Bxd6+ {[%clk 0:00:22.1]} 51...
Kxd6 {[%clk 0:00:06.9]} 52. h6 {[%clk 0:00:22.7]} 1-0

[Event "Early-Titled-Tuesday-Blitz-March-19-2024"]
[Site "Chess.com"]
[Date "2024.03.19"]
[Round "8"]
[White "Seochesspie"]
[Black "AlexanderKing"]
[Result "0-1"]
[WhiteElo "2881"]
[BlackElo "2654"]
[TimeControl "180+1"]
[EndTime "9:29:40 PDT"]
[Termination "AlexanderKing won on time"]

1. e4 {[%clk 0:03:00.9]} 1... e6 {[%clk 0:03:00.1]} 2. d3 {[%clk 0:03:00.2]}
2... d5 {[%clk 0:03:00.7]} 3. Qe2 {[%clk 0:03:00.6]} 3... Nf6 {[%clk 0:02:52]}
4. Nf3 {[%clk 0:02:59.8]} 4... c5 {[%clk 0:02:49.4]} 5. Nbd2 {[%clk 0:02:59.5]}
5... Nc6 {[%clk 0:02:49.7]} 6. g3 {[%clk 0:02:59.5]} 6... g6 {[%clk 0:02:39.7]}
7. Bg2 {[%clk 0:02:54.5]} 7... Bg7 {[%clk 0:02:40]} 8. O-O {[%clk 0:02:38.3]}
8... O-O {[%clk 0:02:40.1]} 9. Re1 {[%clk 0:02:38.7]} 9... b6 {[%clk 0:02:33.8]}
10. Nf1 {[%clk 0:02:35.6]} 10... e5 {[%clk 0:02:13.1]} 11. exd5 {[%clk 0:02:18]}
11... Nxd5 {[%clk 0:02:14]} 12. Ne3 {[%clk 0:02:18.5]} 12... Nxe3 {[%clk
0:02:10]} 13. Bxe3 {[%clk 0:02:17.9]} 13... Bb7 {[%clk 0:02:10.5]} 14. c3 {[%clk
0:02:15.8]} 14... Qd7 {[%clk 0:02:07.6]} 15. Rad1 {[%clk 0:02:15.8]} 15... Rad8
{[%clk 0:02:08.3]} 16. h4 {[%clk 0:02:12.3]} 16... Rfe8 {[%clk 0:02:03.5]} 17.
h5 {[%clk 0:02:10.4]} 17... Nd4 {[%clk 0:02:02.6]} 18. Bxd4 {[%clk 0:01:36.8]}
18... exd4 {[%clk 0:02:01.8]} 19. Qd2 {[%clk 0:01:37.3]} 19... Qg4 {[%clk
0:01:53.7]} 20. Nh2 {[%clk 0:01:34.6]} 20... dxc3 {[%clk 0:01:47.7]} 21. bxc3
{[%clk 0:01:20.2]} 21... Qd7 {[%clk 0:01:37]} 22. Bxb7 {[%clk 0:01:20]} 22...
Qxb7 {[%clk 0:01:37.9]} 23. h6 {[%clk 0:01:16]} 23... Bh8 {[%clk 0:01:26.7]} 24.
c4 {[%clk 0:01:01.5]} 24... Qd7 {[%clk 0:01:21.5]} 25. Rxe8+ {[%clk 0:01:00]}
25... Rxe8 {[%clk 0:01:21]} 26. Qf4 {[%clk 0:00:57.4]} 26... Be5 {[%clk
0:00:59.9]} 27. Qf3 {[%clk 0:00:56.7]} 27... Bd4 {[%clk 0:00:57.2]} 28. Kg2
{[%clk 0:00:44.5]} 28... f5 {[%clk 0:00:52.3]} 29. Rd2 {[%clk 0:00:40.4]} 29...
Qe6 {[%clk 0:00:37]} 30. Nf1 {[%clk 0:00:36.6]} 30... Qe7 {[%clk 0:00:26]} 31.
Ne3 {[%clk 0:00:25.7]} 31... Qg5 {[%clk 0:00:17.9]} 32. Qd5+ {[%clk 0:00:20.1]}
32... Kh8 {[%clk 0:00:15]} 33. Qf7 {[%clk 0:00:17.4]} 33... Qe7 {[%clk
0:00:06.9]} 34. Qd5 {[%clk 0:00:09.5]} 34... Qf8 {[%clk 0:00:04.7]} 35. Qd7
{[%clk 0:00:05.2]} 35... Bxe3 {[%clk 0:00:02]} 36. Re2 {[%clk 0:00:04]} 36... f4
{[%clk 0:00:01.7]} 37. gxf4 {[%clk 0:00:03.5]} 37... Rd8 {[%clk 0:00:01.7]} 38.
Qc7 {[%clk 0:00:01.7]} 38... Bxf4 {[%clk 0:00:01.7]} 39. Qxa7 {[%clk 0:00:01.7]}
39... Bxh6 {[%clk 0:00:02]} 40. Re7 {[%clk 0:00:01.5]} 40... Kg8 {[%clk
0:00:02.7]} 0-1